Cogmind - Beta 9.6 @@@ ROGUE MODE // 2020.08.28 @ 16:09:36 Player: Plexion Result: Self-destructed Performance ------------- Evolutions (3) 1500 Regions Visited (6) 1200 Robots Destroyed (67) 335 Value Destroyed (2585) 2585 Prototype IDs (26) 520 Alien Tech Used (0) 0 Bonus (591) 591 TOTAL SCORE: 6731 Bonus ------- High Alert Combat Kills 163 Follower Combat Kills 153 Aligned with FarCom 300 Friendly Fire -25 Cogmind --------- Core Integrity 560/700 Matter 245/300 Energy 290/290 System Corruption 4% Temperature Cool (0) Movement Treading (225) Ox4 Location -7/Factory Parts ------- > --- POWER (1) -------- Improved Deuterium Engine > --- PROPULSION (3) --- Advanced Treads Armored Huge Wheel > --- UTILITY (7) ------ Medium Storage Unit Medium Storage Unit Large Storage Unit Large Storage Unit High-capacity Storage Unit Improved Light Armor Plating Hacking Suite > --- WEAPON (2) ------- Assault Rifle Advanced EMP Blaster > --- INVENTORY (32) --- Light Deuterium Engine Improved Deuterium Engine Micro Nuclear Core Light Angular Momentum Engine Light Treads Light Treads Aluminum Leg Armored Huge Wheel Armored Huge Wheel Improved VTOL Module High-capacity Matter Pod (0) Advanced Signal Interpreter Propulsion Shielding Hardened Medium Armor Plating Hardened Medium Armor Plating Layered Light Armor Plating Improved Trap Extractor Trap Reconfigurator Heavy Particle Gun Gauss Rifle Gauss Rifle Advanced EMP Blaster Mini Grenade Launcher Mini Grenade Launcher Precision Grenade Launcher Peak State ------------ > --- POWER ------------ Improved Deuterium Engine > --- PROPULSION ------- Armored Treads Armored Huge Wheel > --- UTILITY ---------- Medium Storage Unit Medium Storage Unit Large Storage Unit Large Storage Unit High-capacity Storage Unit Hacking Suite Trap Reconfigurator > --- WEAPON ----------- Gauss Rifle Flak Gun > --- INVENTORY -------- Light Deuterium Engine Micro Nuclear Core Light Treads Light Treads Advanced Treads Aluminum Leg Armored Huge Wheel Armored Huge Wheel Improved VTOL Module High-capacity Matter Pod Advanced Signal Interpreter Propulsion Shielding Hardened Medium Armor Plating Hardened Medium Armor Plating Layered Light Armor Plating Improved Trap Extractor Heavy Particle Gun High-powered Shotgun Gauss Rifle Advanced EMP Blaster Advanced EMP Blaster Mini Grenade Launcher Mini Grenade Launcher Precision Grenade Launcher Heavy Explosive Trap Heavy Explosive Trap Heavy Explosive Trap Heavy Explosive Trap Proton Bomb Trap Proton Bomb Trap [Rating: 50] Favorites ----------- Power Ion Engine Engine Ion Engine Propulsion Light Treads Treads Light Treads Leg Aluminum Leg Wheel Armored Huge Wheel Utility Large Storage Unit Device Heat Sink Storage Large Storage Unit Hackware Hacking Suite Protection Hardened Medium Armor Plating Weapon Light Assault Rifle Energy Gun Small Laser Ballistic Gun Light Assault Rifle Launcher Mini Grenade Launcher Build | -11 -10 -10 -10 -9 -8 -7 ------- Run | Scr Mat Min Exi Min Mat Fac Slots Evolved 6 | . . . . . 4 2 Power . | . . . . . . . Propulsion 1 | . . . . . 1 . Utility 5 | . . . . . 3 2 Weapon . | . . . . . . . Parts Attached 88 | 6 12 5 1 2 25 37 Power 9 | 1 1 . . 1 4 2 Engine 9 | 1 1 . . 1 4 2 Core . | . . . . . . . Reactor . | . . . . . . . Propulsion 11 | 2 . 3 . . 3 3 Treads 8 | 2 . 2 . . 2 2 Leg 1 | . . 1 . . . . Wheel 2 | . . . . . 1 1 Hover . | . . . . . . . Flight . | . . . . . . . Utility 42 | 1 4 . 1 . 8 28 Device 19 | . 1 . . . 2 16 Storage 8 | 1 3 . 1 . 2 1 Processor . | . . . . . . . Hackware 1 | . . . . . . 1 Protection 14 | . . . . . 4 10 Artifact . | . . . . . . . Weapon 26 | 2 7 2 . 1 10 4 Energy Gun 4 | . 1 . . . 3 . Energy Cannon . | . . . . . . . Ballistic Gun 18 | 2 5 2 . . 6 3 Ballistic Cannon . | . . . . . . . Launcher 4 | . 1 . . 1 1 1 Special Weapon . | . . . . . . . Impact Weapon . | . . . . . . . Slashing Weapon . | . . . . . . . Piercing Weapon . | . . . . . . . Special Melee Weapon . | . . . . . . . Unidentified Prototypes 2 | . . . . . 2 . Parts Lost 14 | . 2 1 . 1 6 4 Power 2 | . . . . 1 1 . Propulsion 3 | . 1 1 . . . 1 Utility 3 | . . . . . 2 1 Weapon 6 | . 1 . . . 3 2 Highest Loss Streak 2 | . 2 1 . 1 1 2 Average Slot Usage (%) 92 | . 87 99 100 100 89 90 Engine 10 | . 14 14 14 14 9 7 Treads 14 | . 20 23 28 28 9 6 Wheel 4 | . . . . . 8 7 Device 2 | . 7 . . . . 1 Storage 30 | . 15 28 28 28 36 35 Hackware 2 | . . . . . . 6 Protection 3 | . . . . . 7 6 Ballistic Gun 19 | . 24 22 28 22 16 14 Launcher 1 | . . 5 . 5 . . Naked Turns . | . . . . . . . Heaviest Build 106 | 11 39 40 56 56 92 106 Greatest Support 42 | 40 40 42 42 42 42 28 Greatest Overweight (x) 4 | . 1 1 1 1 4 4 Average Overweight (x) 1 | . . . . 1 3 3 Largest Inventory Capacity 32 | 6 16 16 18 18 28 32 Average Capacity 22 | 5 7 16 17 18 27 30 Most Carried 32 | 2 10 16 17 18 28 32 Average Carried 20 | . 6 13 16 17 26 28 Final Capacity 32 | 6 16 16 18 18 28 32 Final Carried 28 | 2 8 16 17 18 28 27 Class Distribution -------------------- 54% | Hauler-Mutant 45% | Mutant Dominant Class ---------------- Mutant | -10/Materials Mutant | -10/Mines Mutant | -10/Exiles Mutant | -9/Mines Hauler-Mutant | -8/Materials Hauler-Mutant | -7/Factory Resources | -11 -10 -10 -10 -9 -8 -7 ----------- Run | Scr Mat Min Exi Min Mat Fac Matter Collected 2147 | 208 206 144 . 238 643 708 Remotely . | . . . . . . . Salvage Created 2622 | . 583 39 . 56 981 963 Parts 158 | . 35 1 . 5 52 65 Haulers Intercepted 4 | . . . . . 3 1 Recyclers Shooed 2 | . . . . . 2 . Parts Field Recycled . | . . . . . . . Retrieved Matter . | . . . . . . . Parts Self-Destructed . | . . . . . . . Prevented . | . . . . . . . Kills | -11 -10 -10 -10 -9 -8 -7 ------- Run | Scr Mat Min Exi Min Mat Fac Combat Hostiles Destroyed 55 | . 18 2 . 2 15 18 Guns 45 | . 18 . . 1 15 11 AOE 9 | . . 2 . 1 . 6 Classes Destroyed 13 | . 3 . . . 6 4 Worker 3 | . . . . . 2 1 Builder 1 | . . . . . 1 . Tunneler 1 | . . . . . . 1 Hauler 4 | . . . . . 3 1 Recycler 1 | . . . . . 1 . Operator 1 | . . . . . . 1 Watcher 1 | . 1 . . . . . Swarmer 6 | . 6 . . . . . Grunt 33 | . 12 2 . 2 10 7 Brawler 1 | . . . . . . 1 Sentry 7 | . . . . . 3 4 Hunter 4 | . . . . . 2 2 Programmer 4 | . . . . . . 4 Best Kill Streak 8 | . 3 2 . 1 8 5 Combat Bots Only 5 | . 3 2 . 1 5 5 Max Kills in Single Turn 2 | . 1 1 . 1 2 2 Gunslinging . | . . . . . . . Exploded 2 | . . 1 . 1 . 2 Melee . | . . . . . . . Uniques/NPCs Destroyed . | . . . . . . . Combat | -11 -10 -10 -10 -9 -8 -7 -------- Run | Scr Mat Min Exi Min Mat Fac Damage Taken 3890 | . 776 71 . 141 1451 1451 Core 472 | . 78 . . 26 228 140 Absorbed by Shields . | . . . . . . . Core Remaining (%) 72 | 100 . . . 58 58 . Volleys Fired 220 | . 74 5 . 9 83 49 Largest 2 | . 2 2 . 2 2 2 Hottest 118 | . 60 40 . 40 118 56 Shots Fired 413 | . 146 6 . 15 161 85 Gun 398 | . 145 2 . 12 161 78 Cannon . | . . . . . . . Launcher 15 | . 1 4 . 3 . 7 Special . | . . . . . . . Kinetic 385 | . 140 2 . 12 153 78 Thermal 13 | . 5 . . . 8 . Explosive 8 | . 1 4 . 3 . . Electromagnetic 7 | . . . . . . 7 Robot Hit Streak 18 | . 18 9 . 5 11 8 Robot Miss Streak 6 | . 6 . . 3 3 6 Penetration Max 1 | . . . . . 1 1 Secondary Targets 2 | . 1 . . . . 1 Max Gunslinging Chain 1 | . 1 . . . . 1 Shots Hit Robots 285 | . 94 6 . 7 122 56 Core Hits 155 | . 37 4 . 6 51 57 Critical Hits 2 | . 1 . . . 1 . Critical Kills . | . . . . . . . Critical Parts Destroyed 2 | . 1 . . . 1 . Melee Attacks . | . . . . . . . Impact . | . . . . . . . Slashing . | . . . . . . . Piercing . | . . . . . . . Sneak Attacks . | . . . . . . . Combat Hostiles . | . . . . . . . Follow-up Attacks . | . . . . . . . Damage Inflicted 5400 | . 960 277 . 479 1780 1904 Guns 3939 | . 960 21 . 93 1780 1085 Cannons . | . . . . . . . Explosions 1433 | . . 256 . 375 . 802 Melee . | . . . . . . . Ramming 28 | . . . . 11 . 17 Kinetic 3784 | . 915 21 . 93 1670 1085 Thermal 155 | . 45 . . . 110 . Explosive 988 | . . 256 . 375 . 357 Electromagnetic 445 | . . . . . . 445 Impact . | . . . . . . . Slashing . | . . . . . . . Piercing . | . . . . . . . Highest Corruption 4 | . . . . . . 4 Average Corruption 1 | . . . . . . 1 Corruption Purged . | . . . . . . . Effects 17 | . . . . . . 17 Message Errors 6 | . . . . . . 6 Heat Flow Errors 3 | . . . . . . 3 Energy Discharges 1 | . . . . . . 1 Data Loss (minor) 3 | . . . . . . 3 Targeting Errors 4 | . . . . . . 4 Overload Shots . | . . . . . . . Overflow Damage 71 | . . 7 . . . 64 Projectiles . | . . . . . . . Explosions 71 | . . 7 . . . 64 Melee . | . . . . . . . Knockbacks 1 | . . . . . . 1 Impact 1 | . . . . . . 1 Kinetic . | . . . . . . . Secondary . | . . . . . . . Self-Inflicted Damage 256 | . . 59 . . . 197 Shots 10 | . . 2 . . . 8 Rammed 4 | . . . . 2 . 2 Targets Rammed 4 | . . . . 2 . 2 Kicked . | . . . . . . . Crushed . | . . . . . . . Highest Temperature 264 | . 12 . . 12 134 264 Average Temperature 36 | . 6 . . 6 19 97 Received Heat Transfer 1353 | . 384 9 . 66 567 327 Siege Activations . | . . . . . . . Robots Corrupted 1 | . . . . . . 1 Combat Hostiles 1 | . . . . . . 1 Parts Fried 1 | . . . . . . 1 Impact Corruptions . | . . . . . . . Robots Melted . | . . . . . . . Combat Hostiles . | . . . . . . . Parts Melted 2 | . . . . . 2 . Heat Transferred 322 | . 100 . . . 222 . Parts Sabotaged . | . . . . . . . Parts Stolen . | . . . . . . . Parts Stripped . | . . . . . . . Power Chain Reactions 2 | . . . . . . 2 Missiles Intercepted . | . . . . . . . Alert | -11 -10 -10 -10 -9 -8 -7 ------- Run | Scr Mat Min Exi Min Mat Fac Peak Influence 710 | . 285 98 . 163 177 710 Average Influence 149 | . 134 53 . 92 77 238 Maximum Alert Level 3 | . 1 . . . . 3 Low Security (%) 73 | 100 68 100 . 100 100 48 Level 1 14 | . 31 . . . . 21 Level 2 7 | . . . . . . 19 Level 3 3 | . . . . . . 9 Level 4 . | . . . . . . . Level 5 . | . . . . . . . High Security . | . . . . . . . Max Security . | . . . . . . . Squads Dispatched 15 | . 5 . . . 1 9 Investigation 2 | . 2 . . . . . Extermination 4 | . . . . . . 4 Reinforcement 6 | . 3 . . . 1 2 Assault . | . . . . . . . Garrison 3 | . . . . . . 3 Intercept . | . . . . . . . Construction Impeded 1 | . . . . . . 1 Haulers Reinforced . | . . . . . . . Stealth | -11 -10 -10 -10 -9 -8 -7 --------- Run | Scr Mat Min Exi Min Mat Fac Distress Signals 5 | . 2 . . . 2 1 Communications Jammed . | . . . . . . . Distress Signals . | . . . . . . . Times Spotted 100 | . 37 3 . 8 23 29 Peak Tracking Total 7 | . 7 2 . 3 3 7 Tactical Retreats 6 | . 4 . . 1 . 1 Traps | -11 -10 -10 -10 -9 -8 -7 ------- Run | Scr Mat Min Exi Min Mat Fac Traps Triggered 3 | . 2 . . . . 1 Indirectly . | . . . . . . . Trap Hack Attempts . | . . . . . . . Triggered . | . . . . . . . Disarmed . | . . . . . . . Reprogrammed . | . . . . . . . Reused 10 | . . . . . . 10 Traps Reconfigurated 16 | . . . . . 1 15 Traps Extracted 15 | . . . . . . 15 Installed 15 | . . . . . . 15 Triggered 10 | . . . . . . 10 Exploded 1 | . . . 1 . . . Machines | -11 -10 -10 -10 -9 -8 -7 ---------- Run | Scr Mat Min Exi Min Mat Fac Machines Disabled 23 | . . 1 . . . 22 Max in Single Turn 18 | . . 1 . . . 18 Machines Sabotaged . | . . . . . . . Garrisons Compromised . | . . . . . . . Overloaded Fab Kills . | . . . . . . . Fab Network Shutdowns . | . . . . . . . Hacking | -11 -10 -10 -10 -9 -8 -7 --------- Run | Scr Mat Min Exi Min Mat Fac Machines Accessed 14 | . . 1 2 . 2 9 Terminals 10 | . . . . . 2 8 Fabricators . | . . . . . . . Repair Stations . | . . . . . . . Recycling Units . | . . . . . . . Scanalyzers 1 | . . . . . . 1 Garrison Access . | . . . . . . . Total Hacks 43 | . . 1 2 . 7 33 Successful 28 | . . 1 2 . 4 21 Failed 15 | . . . . . 3 12 Catastrophic 4 | . . . . . 1 3 Database Lockouts . | . . . . . . . Manual 34 | . . . 1 . 7 26 Terminals 37 | . . . . . 7 30 Fabricators . | . . . . . . . Repair Stations . | . . . . . . . Recycling Units . | . . . . . . . Scanalyzers 3 | . . . . . . 3 Garrison Access . | . . . . . . . Terminal Hacks 24 | . . 1 2 . 4 17 Record 1 | . . . 1 . . . Part Schematic 1 | . . . . . . 1 Open Door 1 | . . 1 . . . . Branch Access Points 1 | . . . . . . 1 Terminal Index 1 | . . . . . . 1 Fabricator Index 1 | . . . . . . 1 Unreport Threat 2 | . . . . . . 2 Locate Traps 8 | . . . . . 2 6 Hauler Manifests 2 | . . . . . 1 1 Zone Layout 5 | . . . . . 1 4 EX-Prototype ID Bank 1 | . . . 1 . . . Fabricator Hacks . | . . . . . . . Repair Station Hacks . | . . . . . . . Recycling Unit Hacks . | . . . . . . . Scanalyzer 2 | . . . . . . 2 Insert Component 2 | . . . . . . 2 Garrison Access Hacks . | . . . . . . . Unauthorized Hacks 2 | . . . . . . 2 Terminals 2 | . . . . . . 2 Botnet 2 | . . . . . . 2 Fabricators . | . . . . . . . Repair Stations . | . . . . . . . Recycling Units . | . . . . . . . Scanalyzers . | . . . . . . . Garrison Access . | . . . . . . . Data Cores Recovered 1 | . . . . . . 1 Used . | . . . . . . . Hacking Detections 10 | . . . . . 2 8 Full Trace Events . | . . . . . . . Feedback Events . | . . . . . . . Feedback Blocked . | . . . . . . . Robot Schematics Acquired . | . . . . . . . Robots Built . | . . . . . . . Matter . | . . . . . . . Time . | . . . . . . . Total Robot Build Rating . | . . . . . . . Part Schematics Acquired 1 | . . . . . . 1 Parts Built . | . . . . . . . Matter . | . . . . . . . Time . | . . . . . . . Total Part Build Rating . | . . . . . . . Parts Repaired . | . . . . . . . Time . | . . . . . . . Parts Recycled . | . . . . . . . Recycled Matter . | . . . . . . . Retrieved Matter . | . . . . . . . Retrieved Components . | . . . . . . . Parts Scanalyzed . | . . . . . . . Part Schematics Acquired . | . . . . . . . Parts Damaged . | . . . . . . . Bothacking | -11 -10 -10 -10 -9 -8 -7 ------------ Run | Scr Mat Min Exi Min Mat Fac Used RIF Installer . | . . . . . . . Robots Hacked . | . . . . . . . Non-combat . | . . . . . . . Combat . | . . . . . . . Robot Hacks Applied . | . . . . . . . Relay Couplers Released . | . . . . . . . Robots Rewired . | . . . . . . . Allies Hacked . | . . . . . . . Hacks Repelled . | . . . . . . . Allies | -11 -10 -10 -10 -9 -8 -7 -------- Run | Scr Mat Min Exi Min Mat Fac Total Allies 6 | . . 3 . . . 3 Largest Group 3 | . . 3 3 3 2 3 Highest-Rated Group 93 | . . 40 40 40 32 93 Highest-Rated Ally 31 | . . 16 16 16 16 31 Total Orders . | . . . . . . . Ally Attacks 54 | . . . . 25 4 25 Total Damage 687 | . . . . 294 67 326 Kills 9 | . . . . 6 . 3 Allies Corrupted . | . . . . . . . Allies Melted . | . . . . . . . Intel | -11 -10 -10 -10 -9 -8 -7 ------- Run | Scr Mat Min Exi Min Mat Fac Robot Analysis Total . | . . . . . . . Derelict Logs Recovered 1 | . . . . 1 . . Drone Launches . | . . . . . . . Drone Recoveries . | . . . . . . . Exploration | -11 -10 -10 -10 -9 -8 -7 ------------- Run | Scr Mat Min Exi Min Mat Fac Turns Passed 6514 | 72 1158 657 550 508 1205 2364 Spaces Moved 3219 | 42 557 402 335 276 399 1208 Core 5 | 5 . . . . . . Treads 2186 | 37 557 402 335 276 290 289 Legs . | . . . . . . . Wheels 1028 | . . . . . 109 919 Hover . | . . . . . . . Flight . | . . . . . . . Fastest Speed 50 | 50 160 152 152 172 120 130 Average Speed 165 | 146 163 156 163 172 207 156 Slowest Speed 250 | 160 180 180 172 172 240 250 Overloaded Moves . | . . . . . . . Propulsion Burnouts . | . . . . . . . Robots Hopped . | . . . . . . . Cave-ins Triggered . | . . . . . . . Exploration Rate (%) 48 | 3 82 51 70 62 38 32 Regions Visited 6 Branch Regions 3 Pre-discovered Areas 2 | . . 1 1 . . . Known Exits Taken 1 | . . . . . 1 . Unknown Exits Taken 5 | 1 1 1 1 1 . . Scrap Searched 2 | . . 1 . 1 . . Spaces Dug 9 | . 9 . . . . . Terrain Destroyed 147 | . 9 37 . 27 . 74 Melee . | . . . . . . . Projectile 1 | . . . . . . 1 AOE 146 | . 9 37 . 27 . 73 Actions | -11 -10 -10 -10 -9 -8 -7 --------- Run | Scr Mat Min Exi Min Mat Fac Total 4008 | 49 680 425 337 295 625 1597 Wait 372 | . 22 3 . 3 90 254 Move 3213 | 41 556 401 334 275 398 1208 Hop . | . . . . . . . Pick Up 43 | 2 6 8 1 3 15 8 Fast Attach 20 | 6 4 3 . . 5 2 Attach 17 | . 1 . . 1 10 5 Detach 7 | . 2 1 . . 4 . Swap 51 | . 7 2 1 1 10 30 Drop 46 | . 8 2 1 1 10 24 Fire 220 | . 74 5 . 9 83 49 Melee . | . . . . . . . Ram 2 | . . . . . . 2 Kick . | . . . . . . . Crush 2 | . . . . 2 . . Escape Stasis . | . . . . . . . Rewire . | . . . . . . . Trap 15 | . . . . . . 15 Miscellaneous . | . . . . . . . Route ------- -11/Scrapyard -10/Materials (discovered 5 exits: [*Mat x3] / *Min x2) -10/Mines (discovered 3 exits: [*Mat x2] / *Exi) -10/Exiles (discovered 2 exits: [*Min x2]) -9/Mines -8/Materials (discovered 3 exits: *Fac x2 / [*Sto]) -7/Factory (discovered 4 exits: [*Fac x2] / *Low x2) History --------- Turn | Location | Event 44 | -11/Scrapyard | Discovered new exit (range 16) 73 | -11/Scrapyard | Entered Materials 237 | -10/Materials | Discovered new exit (range 11) 318 | -10/Materials | Build established: Mutant 342 | -10/Materials | Discovered new exit (range 3) 569 | -10/Materials | Discovered new exit (range 16) 807 | -10/Materials | Discovered new exit (range 14) 1042 | -10/Materials | Discovered new exit (range 15) 1231 | -10/Materials | Entered Mines 1236 | -10/Mines | Met a Derelict who couldn't figure out how to use a Trap Extractor 1388 | -10/Mines | Discovered new exit (range 16) 1492 | -10/Mines | Joined a pair of Derelicts in attacking an 0b10 outpost 1576 | -10/Mines | Assisted by bots powering up and referring to "LRC-V3" 1601 | -10/Mines | Discovered new exit (range 9) 1603 | -10/Mines | Learned location of Storage (-8) 1877 | -10/Mines | Deemed a non-threat by the Exiles lab entrance 1879 | -10/Mines | Discovered new exit (range 5) 1888 | -10/Mines | Entered Exiles 1888 | -10/Exiles | Accompanied by 3 allies 1911 | -10/Exiles | Discovered new exit (range 15) 1930 | -10/Exiles | Met 8R-AWN 1951 | -10/Exiles | Met EX-HEX 2021 | -10/Exiles | Met EX-DEC 2050 | -10/Exiles | Learned location of Zion (-7) 2184 | -10/Exiles | Met EX-BIN 2217 | -10/Exiles | Aligned with FarCom system 2219 | -10/Exiles | Given EX-Vault access code 2258 | -10/Exiles | Opened EX-Vault 2274 | -10/Exiles | Found Trap Reconfigurator 2309 | -10/Exiles | Warned to stay clear of 0b10 Research branches 2329 | -10/Exiles | Exiles lab attacked by MAIN.C 2425 | -10/Exiles | Discovered new exit (range 10) 2438 | -10/Exiles | Left Exiles lab with Trap Reconfigurator 2438 | -10/Exiles | Entered Mines 2438 | -9/Mines | Accompanied by 3 allies 2635 | -9/Mines | Received a Rocket Launcher from a helpful Derelict 2712 | -9/Mines | Assembled infested the area 2717 | -9/Mines | Assisted by a Guerilla fighting off Assembled 2925 | -9/Mines | Discovered new exit (range 8) 2946 | -9/Mines | Entered Materials 2946 | -8/Materials | Accompanied by 2 allies 2946 | -8/Materials | Evolved 4 slots: Propulsion x1, Utility x3 2947 | -8/Materials | Identified exit to Factory 3188 | -8/Materials | Discovered new exit (range 16) 3243 | -8/Materials | Build established: Hauler-Mutant 4108 | -8/Materials | Discovered exit to Factory (range 11) 4151 | -8/Materials | Entered Factory 4151 | -7/Factory | Evolved 2 slots: Utility x2 4326 | -7/Factory | Identified exit to Lower Caves 5611 | -7/Factory | Allied Derelicts emerged from ambush trap array 5979 | -7/Factory | Discovered new exit (range 15) 6321 | -7/Factory | Discovered new exit (range 9) 6515 | -7/Factory | Self-destructed Last Messages --------------- 06298_ K-01 Serf collects debris. 06298_ U-05 Engineer lays Concrete. 06301_ Acquired Imp. Light Armor Plating. 06301_ U-05 Engineer lays Concrete. 06302_ K-01 Serf collects debris. 06303_ U-05 Engineer lays Concrete. 06303_ U-05 Engineer repairs door. 06303_ Acquired 75 matter. 06304_ R-06 Scavenger collects Imp. Heat Sink. 06304_ U-05 Engineer lays Concrete. 06306_ K-01 Serf collects debris. 06307_ U-05 Engineer lays Concrete. 06310_ R-06 Scavenger collects Lgt. Treads. 06311_ U-05 Engineer lays Concrete. 06314_ Acquired 61 matter. 06319_ R-06 Scavenger collects Lgt. Treads. 06321_ EXIT=FOUND 06336_ Acquired Gauss Rifle. 06349_ Connecting with Terminal... 06379_ I6GAA6LLNNPHWNIVJEQ2JTPUBAH#GL9>CD Map ----- +----------------------------------------------------+ | ?????? | | ?????? | | = ????? | | *%!%= ?????? | | ##+#######+ +############ #????????????? | | #%! = # # %% ?????????????? | | """"""" #* ""# # ?????????????? | | # ""# + ############???? | | """"""" # T"# # # #???? | | ""# # # ] * #???? | | """"""" ""# # %# #???? | | # # # """ """ #???? | | """"""" # # # """ """ #???? | | # # # """ """ #???? | | """"""" # # # # #???? | | # # # + """ """ #???? | | # ! # # # """ """ #???? | | ############################# # """ """ #???? | | ######??????????????# ##### # #???? | | #??????????????# """"" #???# # """ """ #???? | | #??????????????# ""T"" #???# # """ """ #???? | | #??????????????# #???# # """ """ ##### | | [#??????????????# ! #???# # ## | | #??????????????#####+###?###=##########+## | | ######????????????????# #?# ! ######## ## | | ??????????????????????#[ @ ### # | | ??????????????????????# < + | | ??????????????????????# ### # | | ??????????????????????#! #?#! ########### | | ??????????????????????#######?###+###?????????# | | ??????????????????????????????????????????????# | | ??????????????????????????????????????????????#### | | ?????????????????????????????????????????????????? | | ?????????????????????????????????????????????????? | | ?????????????????????????????????????????????????? | | | | | | | | | | | | | | | | | | | | | | | | | | | | | | | +----------------------------------------------------+ Best States ------------- Heat Dissipation 35 Energy Generation 18 Energy Capacity 290 Matter Stores 300 Matter Capacity 300 Sight Range 16 Terrain Scan Density 10 Armor Coverage 450 Propulsion Shielding 33 Evasion (%) 40 Recoil Reduction 2 Offensive Hacking 10 Item Schematics ----------------- Hcp. Storage Unit | -7/Factory | Hacked Robot Schematics ------------------ None Fabricated ------------ Nothing Alien Tech Used ----------------- None Achievements -------------- None Challenges ------------ None Game ------ Seed TitaniumNuclearSuite Manual? 0 Play Time 00:39:57 Cumulative 112.4 hours Start 2020.08.27 @ 22:30:52 End 2020.08.28 @ 16:09:36 Sessions 3 Manual Loads 0 Difficulty Rogue Special Mode None Game No. 129 Rogue 42 Adventurer 87 Explorer 0 Win Type - Total 4 Types 3/0/0/1/0/0/0 Lore% 53 Gallery% 64 Achievement% 55 Wizard Run 0 Options --------- ASCII 0 Keyboard 1 Movement Numpad Keybinds 0 Fullscreen 1 Font 18/Smallcaps Map View 76x50 Tactical HUD 1 Map Filters NONE Filters NONE Steam 1 RUN: d8c3b766-4cb1-471e-9688-805700c6f15b